[Event "European Individual Women's Chess Championship 2017"]
[Site "Riga LAT"]
[Date "2017.04.21"]
[Round "10.1"]
[White "Dzagnidze, Nana"]
[Black "Socko, Monika"]
[Result "1-0"]
[LiveChessVersion "1.4.8"]
[BlackElo "2462"]
[WhiteElo "2528"]
[ECO "A13"]
[TimeControl "40/5400:1800+30"]

1. Nf3 {[%clk 1:30:54]} Nf6 {[%clk 1:30:56]} 2. c4 {[%clk 1:30:55]} e6
{[%clk 1:31:21]} 3. g3 {[%clk 1:30:39]} d5 {[%clk 1:31:46]} 4. Bg2
{[%clk 1:31:03]} dxc4 {[%clk 1:32:12]} 5. O-O {[%clk 1:29:39]} Nbd7
{[%clk 1:29:45]} 6. Na3 {[%clk 1:21:41]} Bxa3 {[%clk 1:25:45]} 7. bxa3
{[%clk 1:22:06]} O-O {[%clk 1:23:04]} 8. Qc2 {[%clk 1:18:00]} a6 {[%clk 1:16:30]}
9. a4 {[%clk 0:57:34]} c5 {[%clk 1:07:25]} 10. Qxc4 {[%clk 0:55:29]} Rb8
{[%clk 0:59:11]} 11. d4 {[%clk 0:52:29]} b5 {[%clk 0:57:02]} 12. Qc2
{[%clk 0:52:29]} Bb7 {[%clk 0:51:50]} 13. dxc5 {[%clk 0:51:50]} Be4
{[%clk 0:51:40]} 14. Qc3 {[%clk 0:50:41]} b4 {[%clk 0:50:30]} 15. Qd4
{[%clk 0:48:49]} e5 {[%clk 0:34:50]} 16. Nxe5 {[%clk 0:33:59]} Bxg2
{[%clk 0:33:00]} 17. Kxg2 {[%clk 0:33:58]} Nxe5 {[%clk 0:33:27]} 18. Qxe5
{[%clk 0:34:23]} Re8 {[%clk 0:33:00]} 19. Qd6 {[%clk 0:30:57]} Qa5
{[%clk 0:29:22]} 20. Bb2 {[%clk 0:28:18]} Rbd8 {[%clk 0:26:47]} 21. Qb6
{[%clk 0:27:20]} Qxa4 {[%clk 0:25:21]} 22. Bxf6 {[%clk 0:24:54]} gxf6
{[%clk 0:25:49]} 23. Qxf6 {[%clk 0:24:15]} Rd5 {[%clk 0:25:45]} 24. Qf3
{[%clk 0:16:09]} Rxc5 {[%clk 0:22:47]} 25. Qg4+ {[%clk 0:13:46]} Kf8
{[%clk 0:21:41]} 26. Qd4 {[%clk 0:10:58]} Qc6+ {[%clk 0:21:25]} 27. Kg1
{[%clk 0:11:24]} Rxe2 {[%clk 0:20:26]} 28. Rae1 {[%clk 0:09:48]} Re6
{[%clk 0:15:28]} 29. Rxe6 {[%clk 0:09:44]} fxe6 {[%clk 0:15:57]} 30. Qxb4
{[%clk 0:09:59]} Kf7 {[%clk 0:15:13]} 31. Rd1 {[%clk 0:09:32]} h5
{[%clk 0:10:18]} 32. h4 {[%clk 0:08:10]} Kg6 {[%clk 0:09:12]} 33. Qf4
{[%clk 0:07:10]} a5 {[%clk 0:08:11]} 34. Kh2 {[%clk 0:04:05]} Rf5
{[%clk 0:07:14]} 35. Qe3 {[%clk 0:04:31]} Qc4 {[%clk 0:04:36]} 36. a3
{[%clk 0:02:20]} Qc6 {[%clk 0:02:00]} 37. Rd8 {[%clk 0:01:56]} Qc4
{[%clk 0:01:31]} 38. Rh8 {[%clk 0:01:34]} Kf6 {[%clk 0:01:22]} 39. Rf8+
{[%clk 0:01:18]} Kg6 {[%clk 0:01:12]} 40. Rxf5 {[%clk 0:31:34]} Kxf5
{[%clk 0:31:31]} 41. Qg5+ {[%clk 0:31:57]} Ke4 {[%clk 0:32:00]} 42. Qf4+
{[%clk 0:27:11]} Kd3 {[%clk 0:32:17]} 43. Qxc4+ {[%clk 0:27:24]} Kxc4
{[%clk 0:32:43]} 44. g4 {[%clk 0:27:48]} 1-0

[Event "European Individual Women's Chess Championship 2017"]
[Site "Riga LAT"]
[Date "2017.04.21"]
[Round "10.2"]
[White "Hoang, Thanh Trang"]
[Black "Goryachkina, Aleksandra"]
[Result "1/2-1/2"]
[LiveChessVersion "1.4.8"]
[BlackElo "2452"]
[WhiteElo "2459"]
[ECO "D00"]
[TimeControl "40/5400:1800+30"]

1. d4 {[%clk 1:30:46]} d5 {[%clk 1:30:53]} 2. Bf4 {[%clk 1:30:23]} Nf6
{[%clk 1:30:39]} 3. e3 {[%clk 1:30:31]} c5 {[%clk 1:29:59]} 4. Nf3
{[%clk 1:30:13]} Nc6 {[%clk 1:30:03]} 5. c3 {[%clk 1:27:03]} e6 {[%clk 1:29:29]}
6. Nbd2 {[%clk 1:26:46]} Bd6 {[%clk 1:29:33]} 7. Bg3 {[%clk 1:26:49]} O-O
{[%clk 1:29:39]} 8. Bd3 {[%clk 1:26:48]} b6 {[%clk 1:28:43]} 9. O-O
{[%clk 1:25:17]} Bb7 {[%clk 1:25:10]} 10. Qe2 {[%clk 1:23:36]} Bxg3
{[%clk 1:10:06]} 11. hxg3 {[%clk 1:22:27]} Qd6 {[%clk 1:07:33]} 12. dxc5
{[%clk 1:15:37]} Qxc5 {[%clk 1:05:22]} 13. e4 {[%clk 1:14:20]} dxe4
{[%clk 0:58:07]} 14. Nxe4 {[%clk 1:14:14]} Nxe4 {[%clk 0:57:48]} 15. Qxe4
{[%clk 1:13:43]} g6 {[%clk 0:57:18]} 16. Rad1 {[%clk 1:03:23]} Qe7
{[%clk 0:54:49]} 17. Qe3 {[%clk 0:56:48]} Rfd8 {[%clk 0:52:22]} 18. Rd2
{[%clk 0:55:04]} Rd5 {[%clk 0:49:14]} 19. Rfd1 {[%clk 0:52:09]} Rad8
{[%clk 0:48:48]} 20. Be4 {[%clk 0:45:28]} Rxd2 {[%clk 0:47:57]} 21. Rxd2
{[%clk 0:45:44]} Rxd2 {[%clk 0:44:05]} 22. Qxd2 {[%clk 0:45:11]} Na5
{[%clk 0:42:59]} 23. Qd4 {[%clk 0:37:50]} Bxe4 {[%clk 0:38:11]} 24. Qxe4
{[%clk 0:38:11]} Nb7 {[%clk 0:35:06]} 25. g4 {[%clk 0:32:45]} Nc5
{[%clk 0:31:39]} 26. Qa8+ {[%clk 0:30:14]} Kg7 {[%clk 0:31:22]} 27. b4
{[%clk 0:30:13]} Nd3 {[%clk 0:25:04]} 28. Qe4 {[%clk 0:24:12]} Qd6
{[%clk 0:23:59]} 29. g5 {[%clk 0:22:20]} a5 {[%clk 0:13:56]} 30. a3
{[%clk 0:20:33]} Qd5 {[%clk 0:11:12]} 31. Qd4+ {[%clk 0:18:06]} Qxd4
{[%clk 0:11:03]} 32. Nxd4 {[%clk 0:18:26]} Ne5 {[%clk 0:09:48]} 33. Kf1
{[%clk 0:16:13]} Nc4 {[%clk 0:09:28]} 34. Nb5 {[%clk 0:15:24]} f6
{[%clk 0:08:37]} 35. gxf6+ {[%clk 0:12:14]} Kxf6 {[%clk 0:09:06]} 36. Ke2
{[%clk 0:12:31]} Ke5 {[%clk 0:07:38]} 37. Kd3 {[%clk 0:12:39]} Nb2+
{[%clk 0:07:40]} 38. Kc2 {[%clk 0:12:57]} Nc4 {[%clk 0:08:05]} 39. Kd3
{[%clk 0:12:41]} Nb2+ {[%clk 0:08:24]} 40. Kc2 {[%clk 0:42:52]} Nc4
{[%clk 0:38:47]} 41. Kd3 {[%clk 0:38:11]} 1/2-1/2

[Event "European Individual Women's Chess Championship 2017"]
[Site "Riga LAT"]
[Date "2017.04.21"]
[Round "10.3"]
[White "Kashlinskaya, Alina"]
[Black "Muzychuk, Mariya"]
[Result "1/2-1/2"]
[LiveChessVersion "1.4.8"]
[BlackElo "2546"]
[WhiteElo "2426"]
[ECO "E32"]
[TimeControl "40/5400:1800+30"]

1. d4 {[%clk 1:30:57]} Nf6 {[%clk 1:30:53]} 2. c4 {[%clk 1:31:21]} e6
{[%clk 1:31:12]} 3. Nc3 {[%clk 1:31:45]} Bb4 {[%clk 1:31:21]} 4. Qc2
{[%clk 1:32:09]} O-O {[%clk 1:30:59]} 5. a3 {[%clk 1:32:32]} Bxc3+
{[%clk 1:31:23]} 6. Qxc3 {[%clk 1:32:58]} d5 {[%clk 1:31:30]} 7. Nf3
{[%clk 1:33:00]} dxc4 {[%clk 1:27:27]} 8. Qxc4 {[%clk 1:33:23]} b6
{[%clk 1:27:32]} 9. Bg5 {[%clk 1:33:37]} Ba6 {[%clk 1:27:13]} 10. Qa4
{[%clk 1:33:47]} Qd7 {[%clk 1:20:20]} 11. Qc2 {[%clk 1:31:32]} c5
{[%clk 1:13:45]} 12. dxc5 {[%clk 1:28:27]} bxc5 {[%clk 1:10:45]} 13. Bxf6
{[%clk 1:21:33]} gxf6 {[%clk 1:11:10]} 14. Qxc5 {[%clk 1:16:32]} Rc8
{[%clk 1:10:16]} 15. Qh5 {[%clk 1:13:18]} Qb7 {[%clk 0:56:17]} 16. Qg4+
{[%clk 1:08:59]} Kf8 {[%clk 0:54:24]} 17. Qd4 {[%clk 1:01:51]} e5
{[%clk 0:53:59]} 18. Qd2 {[%clk 0:59:55]} Nc6 {[%clk 0:48:44]} 19. g3
{[%clk 0:35:50]} Rd8 {[%clk 0:37:12]} 20. Qh6+ {[%clk 0:36:05]} Ke7
{[%clk 0:22:19]} 21. Bg2 {[%clk 0:29:21]} Bxe2 {[%clk 0:20:30]} 22. Nxe5
{[%clk 0:26:16]} fxe5 {[%clk 0:20:40]} 23. Qg5+ {[%clk 0:26:05]} Kf8
{[%clk 0:19:59]} 24. Qh6+ {[%clk 0:26:17]} Ke7 {[%clk 0:20:25]} 25. Qg5+
{[%clk 0:21:25]} Kf8 {[%clk 0:20:31]} 26. Qh6+ {[%clk 0:21:20]} 1/2-1/2

[Event "European Individual Women's Chess Championship 2017"]
[Site "Riga LAT"]
[Date "2017.04.21"]
[Round "10.4"]
[White "Paehtz, Elisabeth"]
[Black "Danielian, Elina"]
[Result "1/2-1/2"]
[LiveChessVersion "1.4.8"]
[BlackElo "2437"]
[WhiteElo "2454"]
[ECO "A64"]
[TimeControl "40/5400:1800+30"]

1. d4 {[%clk 1:30:57]} Nf6 {[%clk 1:30:48]} 2. c4 {[%clk 1:31:23]} e6
{[%clk 1:31:13]} 3. g3 {[%clk 1:31:49]} c5 {[%clk 1:31:05]} 4. d5
{[%clk 1:32:16]} exd5 {[%clk 1:31:31]} 5. cxd5 {[%clk 1:32:43]} d6
{[%clk 1:31:56]} 6. Nc3 {[%clk 1:33:00]} g6 {[%clk 1:32:15]} 7. Bg2
{[%clk 1:33:23]} Bg7 {[%clk 1:32:39]} 8. Nf3 {[%clk 1:33:51]} O-O
{[%clk 1:33:02]} 9. O-O {[%clk 1:34:18]} a6 {[%clk 1:32:53]} 10. a4
{[%clk 1:34:43]} Re8 {[%clk 1:32:52]} 11. Nd2 {[%clk 1:35:10]} Nbd7
{[%clk 1:32:30]} 12. h3 {[%clk 1:35:29]} Rb8 {[%clk 1:30:30]} 13. Nc4
{[%clk 1:35:45]} Ne5 {[%clk 1:30:56]} 14. Na3 {[%clk 1:36:10]} Nh5
{[%clk 1:23:48]} 15. e4 {[%clk 1:36:31]} c4 {[%clk 0:54:46]} 16. Be3
{[%clk 1:31:07]} Bd7 {[%clk 0:34:44]} 17. a5 {[%clk 1:21:28]} Rc8
{[%clk 0:32:09]} 18. g4 {[%clk 1:05:38]} Nf6 {[%clk 0:23:22]} 19. Bb6
{[%clk 1:03:46]} Qe7 {[%clk 0:23:47]} 20. Qd2 {[%clk 0:56:19]} h5
{[%clk 0:18:37]} 21. g5 {[%clk 0:42:55]} Nh7 {[%clk 0:19:04]} 22. f4
{[%clk 0:43:23]} Nd3 {[%clk 0:19:30]} 23. Be3 {[%clk 0:42:09]} f5
{[%clk 0:15:30]} 24. gxf6 {[%clk 0:42:33]} Nxf6 {[%clk 0:15:50]} 25. Nc2
{[%clk 0:40:10]} h4 {[%clk 0:10:41]} 26. Bd4 {[%clk 0:27:18]} 1/2-1/2

[Event "European Individual Women's Chess Championship 2017"]
[Site "Riga LAT"]
[Date "2017.04.21"]
[Round "10.6"]
[White "Bulmaga, Irina"]
[Black "Lagno, Kateryna"]
[Result "0-1"]
[LiveChessVersion "1.4.8"]
[BlackElo "2543"]
[WhiteElo "2394"]
[ECO "B66"]
[TimeControl "40/5400:1800+30"]

1. e4 {[%clk 1:30:56]} c5 {[%clk 1:30:52]} 2. Nf3 {[%clk 1:31:18]} d6
{[%clk 1:31:18]} 3. d4 {[%clk 1:31:40]} cxd4 {[%clk 1:31:42]} 4. Nxd4
{[%clk 1:32:04]} Nf6 {[%clk 1:32:07]} 5. Nc3 {[%clk 1:32:26]} Nc6
{[%clk 1:32:31]} 6. Bg5 {[%clk 1:31:23]} e6 {[%clk 1:32:56]} 7. Qd2
{[%clk 1:31:06]} a6 {[%clk 1:33:14]} 8. O-O-O {[%clk 1:30:56]} Be7
{[%clk 1:33:32]} 9. f3 {[%clk 1:27:18]} Nxd4 {[%clk 1:33:31]} 10. Qxd4
{[%clk 1:27:38]} b5 {[%clk 1:33:48]} 11. h4 {[%clk 1:27:21]} Bb7 {[%clk 1:28:25]}
12. Kb1 {[%clk 1:22:07]} O-O {[%clk 1:28:08]} 13. g4 {[%clk 1:21:07]} Rc8
{[%clk 1:27:21]} 14. a3 {[%clk 1:16:26]} d5 {[%clk 1:07:52]} 15. e5
{[%clk 1:14:18]} Nd7 {[%clk 1:06:18]} 16. Qe3 {[%clk 1:01:50]} Bc5
{[%clk 1:03:45]} 17. Qe1 {[%clk 0:28:32]} Qc7 {[%clk 1:03:36]} 18. f4
{[%clk 0:28:36]} b4 {[%clk 0:48:16]} 19. axb4 {[%clk 0:27:51]} Bxb4
{[%clk 0:47:09]} 20. Rh3 {[%clk 0:28:15]} Qa5 {[%clk 0:32:08]} 21. Rdd3
{[%clk 0:25:21]} Nc5 {[%clk 0:31:37]} 22. Rd2 {[%clk 0:16:32]} Na4
{[%clk 0:28:19]} 23. Nxa4 {[%clk 0:16:28]} Bxd2 {[%clk 0:28:43]} 24. Qd1
{[%clk 0:16:00]} Bxf4 {[%clk 0:26:19]} 25. Bxf4 {[%clk 0:15:28]} Qxa4
{[%clk 0:26:46]} 26. Bc1 {[%clk 0:15:06]} d4 {[%clk 0:26:31]} 27. Bd3
{[%clk 0:14:37]} Bd5 {[%clk 0:25:58]} 28. b3 {[%clk 0:14:50]} Qc6
{[%clk 0:26:16]} 29. h5 {[%clk 0:13:55]} Be4 {[%clk 0:22:17]} 30. h6
{[%clk 0:14:19]} Rc7 {[%clk 0:21:02]} 31. hxg7 {[%clk 0:13:16]} Rfc8
{[%clk 0:21:22]} 32. Rh2 {[%clk 0:12:29]} Qd5 {[%clk 0:20:13]} 33. Bb2
{[%clk 0:07:28]} Qxe5 {[%clk 0:15:10]} 34. Re2 {[%clk 0:06:36]} Bxd3
{[%clk 0:15:14]} 35. Qxd3 {[%clk 0:06:46]} Qxg7 {[%clk 0:12:56]} 36. Bxd4
{[%clk 0:05:22]} Rd8 {[%clk 0:08:54]} 37. Bxg7 {[%clk 0:03:45]} Rxd3
{[%clk 0:09:21]} 38. Be5 {[%clk 0:00:44]} Rd1+ {[%clk 0:09:45]} 39. Kb2
{[%clk 0:01:12]} Rc5 {[%clk 0:05:57]} 40. Re4 {[%clk 0:30:32]} f5
{[%clk 0:35:22]} 41. gxf5 {[%clk 0:29:28]} exf5 {[%clk 0:35:42]} 42. Re2
{[%clk 0:29:51]} Kf7 {[%clk 0:34:01]} 43. b4 {[%clk 0:29:41]} Rc4
{[%clk 0:33:39]} 44. Bc3 {[%clk 0:29:47]} h5 {[%clk 0:31:07]} 45. Re5
{[%clk 0:26:15]} Rf1 {[%clk 0:30:37]} 46. Kb3 {[%clk 0:26:01]} Rc6
{[%clk 0:30:53]} 47. Rd5 {[%clk 0:24:29]} Rf3 {[%clk 0:31:05]} 0-1

[Event "European Individual Women's Chess Championship 2017"]
[Site "Riga LAT"]
[Date "2017.04.21"]
[Round "10.7"]
[White "Osmak, Iulija"]
[Black "Pogonina, Natalija"]
[Result "0-1"]
[LiveChessVersion "1.4.8"]
[BlackElo "2478"]
[WhiteElo "2348"]
[ECO "C78"]
[TimeControl "40/5400:1800+30"]

1. e4 {[%clk 1:30:22]} e5 {[%clk 1:30:55]} 2. Nf3 {[%clk 1:30:41]} Nc6
{[%clk 1:31:21]} 3. Bb5 {[%clk 1:31:03]} a6 {[%clk 1:31:38]} 4. Ba4
{[%clk 1:31:28]} Nf6 {[%clk 1:32:03]} 5. O-O {[%clk 1:31:42]} b5 {[%clk 1:32:02]}
6. Bb3 {[%clk 1:32:06]} Bb7 {[%clk 1:32:27]} 7. d3 {[%clk 1:31:27]} Be7
{[%clk 1:32:45]} 8. Nc3 {[%clk 1:31:30]} O-O {[%clk 1:32:39]} 9. Bd2
{[%clk 1:31:43]} d6 {[%clk 1:29:19]} 10. Nd5 {[%clk 1:31:06]} Nxd5
{[%clk 1:29:42]} 11. Bxd5 {[%clk 1:31:31]} Qc8 {[%clk 1:29:49]} 12. Re1
{[%clk 1:27:15]} Bf6 {[%clk 1:26:10]} 13. c3 {[%clk 1:27:02]} Ne7
{[%clk 1:25:53]} 14. Bxb7 {[%clk 1:26:43]} Qxb7 {[%clk 1:26:18]} 15. h4
{[%clk 1:24:45]} c5 {[%clk 1:20:41]} 16. Nh2 {[%clk 1:21:04]} Nc6
{[%clk 1:19:51]} 17. g3 {[%clk 1:14:02]} Qd7 {[%clk 1:00:38]} 18. Ng4
{[%clk 1:09:51]} Bd8 {[%clk 0:58:12]} 19. a4 {[%clk 1:08:22]} b4 {[%clk 0:56:32]}
20. Ne3 {[%clk 1:02:39]} Rb8 {[%clk 0:51:16]} 21. Qg4 {[%clk 0:36:37]} Qxg4
{[%clk 0:40:45]} 22. Nxg4 {[%clk 0:37:04]} bxc3 {[%clk 0:34:13]} 23. bxc3
{[%clk 0:37:30]} c4 {[%clk 0:34:18]} 24. dxc4 {[%clk 0:36:51]} Na5
{[%clk 0:34:16]} 25. Ne3 {[%clk 0:26:57]} Bb6 {[%clk 0:33:39]} 26. Nd5
{[%clk 0:20:52]} Nxc4 {[%clk 0:31:08]} 27. Re2 {[%clk 0:17:41]} Bc5
{[%clk 0:30:20]} 28. Be3 {[%clk 0:18:03]} Nxe3 {[%clk 0:24:20]} 29. Nxe3
{[%clk 0:16:35]} Rb3 {[%clk 0:22:48]} 30. Nd5 {[%clk 0:16:30]} Rb7
{[%clk 0:22:35]} 31. Raa2 {[%clk 0:13:19]} Rfb8 {[%clk 0:14:36]} 32. Kf1
{[%clk 0:13:00]} f6 {[%clk 0:14:26]} 33. Red2 {[%clk 0:11:39]} Kf7
{[%clk 0:14:19]} 34. Ke2 {[%clk 0:11:02]} Ke6 {[%clk 0:09:50]} 35. Rd3
{[%clk 0:07:00]} f5 {[%clk 0:05:39]} 36. exf5+ {[%clk 0:06:50]} Kxf5
{[%clk 0:06:04]} 37. Nb4 {[%clk 0:04:42]} Bxb4 {[%clk 0:03:13]} 38. cxb4
{[%clk 0:05:07]} Ke6 {[%clk 0:03:33]} 39. Rad2 {[%clk 0:05:05]} Rd8
{[%clk 0:04:03]} 40. Rb3 {[%clk 0:35:33]} Rdb8 {[%clk 0:03:47]} 41. Rbd3
{[%clk 0:28:56]} Rd8 {[%clk 0:27:22]} 42. Rb3 {[%clk 0:29:17]} Rc8
{[%clk 0:24:41]} 43. Kd3 {[%clk 0:24:31]} d5 {[%clk 0:22:17]} 44. f3
{[%clk 0:22:17]} Rf7 {[%clk 0:13:58]} 45. Ke3 {[%clk 0:21:13]} Rc4
{[%clk 0:14:15]} 46. Ra2 {[%clk 0:20:46]} e4 {[%clk 0:09:40]} 47. Rf2
{[%clk 0:17:22]} h5 {[%clk 0:07:04]} 48. b5 {[%clk 0:16:27]} Rxa4
{[%clk 0:06:29]} 49. bxa6 {[%clk 0:15:59]} Rxa6 {[%clk 0:06:35]} 50. f4
{[%clk 0:14:12]} Rfa7 {[%clk 0:06:08]} 51. Rc2 {[%clk 0:13:26]} Ra3
{[%clk 0:04:09]} 52. Rcc3 {[%clk 0:13:50]} Rxb3 {[%clk 0:04:19]} 53. Rxb3
{[%clk 0:14:16]} Ra4 {[%clk 0:03:40]} 54. Rb6+ {[%clk 0:14:02]} Kf5
{[%clk 0:03:58]} 55. Rd6 {[%clk 0:14:27]} Ra3+ {[%clk 0:04:07]} 56. Kf2
{[%clk 0:14:52]} Rd3 {[%clk 0:03:08]} 57. Rd7 {[%clk 0:15:10]} d4
{[%clk 0:01:37]} 58. Rxg7 {[%clk 0:15:12]} Rd2+ {[%clk 0:01:58]} 59. Ke1
{[%clk 0:15:16]} e3 {[%clk 0:02:09]} 60. Rg5+ {[%clk 0:14:51]} Ke4
{[%clk 0:02:33]} 61. Rxh5 {[%clk 0:15:12]} Ra2 {[%clk 0:02:30]} 62. Re5+
{[%clk 0:15:25]} Kf3 {[%clk 0:02:33]} 63. Kd1 {[%clk 0:15:46]} d3
{[%clk 0:02:45]} 0-1

[Event "European Individual Women's Chess Championship 2017"]
[Site "Riga LAT"]
[Date "2017.04.21"]
[Round "10.8"]
[White "Bodnaruk, Anastasia"]
[Black "Nechaeva, Marina"]
[Result "0-1"]
[LiveChessVersion "1.4.8"]
[BlackElo "2395"]
[WhiteElo "2446"]
[ECO "B18"]
[TimeControl "40/5400:1800+30"]

1. e4 {[%clk 1:30:57]} c6 {[%clk 1:30:55]} 2. d4 {[%clk 1:31:22]} d5
{[%clk 1:31:21]} 3. Nc3 {[%clk 1:31:43]} dxe4 {[%clk 1:31:46]} 4. Nxe4
{[%clk 1:32:11]} Bf5 {[%clk 1:32:11]} 5. Ng3 {[%clk 1:32:38]} Bg6
{[%clk 1:32:35]} 6. h4 {[%clk 1:33:02]} h6 {[%clk 1:33:01]} 7. Nf3
{[%clk 1:33:28]} Nf6 {[%clk 1:32:36]} 8. h5 {[%clk 1:27:57]} Bh7 {[%clk 1:33:01]}
9. Bd3 {[%clk 1:28:11]} Bxd3 {[%clk 1:33:26]} 10. Qxd3 {[%clk 1:28:38]} e6
{[%clk 1:33:49]} 11. Bd2 {[%clk 1:21:22]} Be7 {[%clk 1:34:13]} 12. O-O-O
{[%clk 1:20:27]} O-O {[%clk 1:34:37]} 13. Qe2 {[%clk 1:12:05]} c5
{[%clk 1:32:18]} 14. dxc5 {[%clk 1:10:17]} Qc7 {[%clk 1:32:12]} 15. Ne5
{[%clk 0:56:23]} Qxc5 {[%clk 1:32:23]} 16. Nd3 {[%clk 0:41:53]} Qc4
{[%clk 1:18:44]} 17. b3 {[%clk 0:39:13]} Qc7 {[%clk 1:09:18]} 18. Qe5
{[%clk 0:30:54]} Rc8 {[%clk 1:01:30]} 19. Qxc7 {[%clk 0:29:50]} Rxc7
{[%clk 1:01:57]} 20. Bf4 {[%clk 0:26:09]} Rc8 {[%clk 1:02:11]} 21. Be5
{[%clk 0:26:03]} Nbd7 {[%clk 0:59:18]} 22. Bb2 {[%clk 0:25:19]} b5
{[%clk 0:59:35]} 23. Kb1 {[%clk 0:22:38]} Rc7 {[%clk 0:57:03]} 24. Ne5
{[%clk 0:16:40]} Nb6 {[%clk 0:56:28]} 25. Rd2 {[%clk 0:15:26]} Rac8
{[%clk 0:55:04]} 26. f4 {[%clk 0:12:05]} Nbd5 {[%clk 0:45:31]} 27. Nd3
{[%clk 0:06:49]} a6 {[%clk 0:26:28]} 28. Re2 {[%clk 0:05:40]} Nc3+
{[%clk 0:22:32]} 29. Bxc3 {[%clk 0:06:08]} Rxc3 {[%clk 0:22:59]} 30. Rd2
{[%clk 0:02:18]} R3c7 {[%clk 0:22:08]} 31. Rc1 {[%clk 0:00:49]} Nd5
{[%clk 0:19:23]} 32. Ne2 {[%clk 0:00:45]} Ba3 {[%clk 0:11:12]} 33. Re1
{[%clk 0:00:59]} Rd8 {[%clk 0:10:42]} 34. Red1 {[%clk 0:00:36]} Ne3
{[%clk 0:05:51]} 35. Ne5 {[%clk 0:00:57]} Rxd2 {[%clk 0:03:09]} 36. Rxd2
{[%clk 0:01:26]} Nxg2 {[%clk 0:03:31]} 37. c3 {[%clk 0:00:34]} Be7
{[%clk 0:03:24]} 38. Rd3 {[%clk 0:00:37]} Nh4 {[%clk 0:02:21]} 39. Nd4
{[%clk 0:00:36]} Bf6 {[%clk 0:01:01]} 40. Kb2 {[%clk 0:30:34]} Kh7
{[%clk 0:30:50]} 41. Rd2 {[%clk 0:16:03]} g6 {[%clk 0:27:09]} 42. a4
{[%clk 0:13:40]} bxa4 {[%clk 0:27:16]} 43. bxa4 {[%clk 0:13:34]} gxh5
{[%clk 0:27:36]} 44. Kb3 {[%clk 0:10:21]} Ng6 {[%clk 0:27:18]} 45. Nxg6
{[%clk 0:08:52]} Kxg6 {[%clk 0:27:44]} 46. Rg2+ {[%clk 0:09:20]} Kh7
{[%clk 0:28:10]} 47. Ne2 {[%clk 0:09:34]} h4 {[%clk 0:25:51]} 48. Rg1
{[%clk 0:09:48]} Rd7 49. Kc2 {[%clk 0:09:18]} Be7 {[%clk 0:20:57]} 50. Nc1
{[%clk 0:07:22]} Rd8 {[%clk 0:14:12]} 51. Nd3 {[%clk 0:06:30]} Rg8
{[%clk 0:14:25]} 52. Rh1 {[%clk 0:03:51]} Rg2+ {[%clk 0:13:39]} 53. Kb3
{[%clk 0:04:20]} Kg6 {[%clk 0:11:10]} 54. c4 {[%clk 0:01:50]} Kf5
{[%clk 0:11:35]} 55. c5 {[%clk 0:01:51]} Ke4 {[%clk 0:11:12]} 56. Kc4
{[%clk 0:02:04]} Rc2+ {[%clk 0:10:28]} 57. Kb3 {[%clk 0:02:33]} Rd2
{[%clk 0:09:37]} 58. Ne5 {[%clk 0:02:54]} Bxc5 {[%clk 0:08:12]} 59. Rxh4
{[%clk 0:03:12]} f6 {[%clk 0:06:46]} 60. Ng6 {[%clk 0:03:07]} Bg1
{[%clk 0:03:31]} 61. Rxh6 {[%clk 0:01:11]} Rh2 {[%clk 0:03:50]} 62. Nh4
{[%clk 0:01:13]} Bd4 {[%clk 0:03:33]} 63. Kc4 {[%clk 0:00:46]} Rc2+
{[%clk 0:02:52]} 64. Kb3 {[%clk 0:01:15]} Rb2+ {[%clk 0:02:41]} 65. Ka3
{[%clk 0:01:35]} Rh2 {[%clk 0:02:55]} 66. Kb4 {[%clk 0:00:41]} Kxf4
{[%clk 0:02:02]} 67. Kc4 {[%clk 0:00:35]} Ke4 {[%clk 0:01:44]} 68. a5
{[%clk 0:00:41]} e5 {[%clk 0:01:08]} 69. Rxf6 {[%clk 0:00:36]} Rxh4
{[%clk 0:01:34]} 70. Rxa6 {[%clk 0:01:05]} Rh1 {[%clk 0:01:56]} 71. Re6
{[%clk 0:01:17]} Rc1+ {[%clk 0:02:16]} 72. Kb5 {[%clk 0:01:41]} Kd3
{[%clk 0:02:34]} 73. a6 {[%clk 0:02:05]} Rb1+ {[%clk 0:02:55]} 74. Ka5
{[%clk 0:02:19]} Kc4 {[%clk 0:02:58]} 75. Rc6+ {[%clk 0:02:32]} Bc5
{[%clk 0:03:21]} 0-1

[Event "European Individual Women's Chess Championship 2017"]
[Site "Riga LAT"]
[Date "2017.04.21"]
[Round "10.9"]
[White "Unuk, Laura"]
[Black "Khotenashvili, Bela"]
[Result "1/2-1/2"]
[LiveChessVersion "1.4.8"]
[BlackElo "2445"]
[WhiteElo "2275"]
[ECO "A50"]
[TimeControl "40/5400:1800+30"]

1. d4 {[%clk 1:30:55]} Nf6 {[%clk 1:30:44]} 2. c4 {[%clk 1:31:12]} b6
{[%clk 1:31:02]} 3. Nf3 {[%clk 1:30:42]} Bb7 {[%clk 1:31:26]} 4. Nc3
{[%clk 1:30:45]} e6 {[%clk 1:31:22]} 5. g3 {[%clk 1:30:21]} Bb4 {[%clk 1:29:33]}
6. Bd2 {[%clk 1:26:55]} c5 {[%clk 1:21:35]} 7. Bg2 {[%clk 1:22:31]} cxd4
{[%clk 1:18:08]} 8. Nb5 {[%clk 1:21:10]} Bc5 {[%clk 1:17:06]} 9. O-O
{[%clk 1:06:12]} e5 {[%clk 0:45:20]} 10. b4 {[%clk 0:47:06]} a6 {[%clk 0:41:05]}
11. Na3 {[%clk 0:45:23]} Bd6 {[%clk 0:36:23]} 12. Nxd4 {[%clk 0:41:11]} Bxg2
{[%clk 0:34:06]} 13. Nf5 {[%clk 0:41:32]} Bxf1 {[%clk 0:32:16]} 14. Nxd6+
{[%clk 0:41:57]} Kf8 {[%clk 0:32:44]} 15. Kxf1 {[%clk 0:40:39]} Nc6
{[%clk 0:30:00]} 16. b5 {[%clk 0:38:49]} Qe7 {[%clk 0:27:27]} 17. Nf5
{[%clk 0:26:12]} Qe6 {[%clk 0:24:54]} 18. Qb1 {[%clk 0:23:04]} g6
{[%clk 0:23:39]} 19. Bh6+ {[%clk 0:20:00]} Kg8 {[%clk 0:24:00]} 20. Bg7
{[%clk 0:20:14]} gxf5 {[%clk 0:18:27]} 21. Bxh8 {[%clk 0:19:07]} Kxh8
{[%clk 0:18:49]} 22. bxc6 {[%clk 0:19:32]} Qxc6 {[%clk 0:19:14]} 23. Kg1
{[%clk 0:16:54]} Ne4 {[%clk 0:17:57]} 24. Qd3 {[%clk 0:17:10]} Qe6
{[%clk 0:13:46]} 25. Nc2 {[%clk 0:16:11]} Nc5 {[%clk 0:10:36]} 26. Qf3
{[%clk 0:15:55]} Rg8 {[%clk 0:10:52]} 27. Ne3 {[%clk 0:15:30]} f4
{[%clk 0:10:38]} 28. Nd5 {[%clk 0:15:28]} b5 {[%clk 0:05:00]} 29. cxb5
{[%clk 0:15:27]} axb5 {[%clk 0:05:28]} 30. Rb1 {[%clk 0:15:01]} Qc6
{[%clk 0:05:36]} 31. Rd1 {[%clk 0:11:17]} Rg6 {[%clk 0:04:17]} 32. Qc3
{[%clk 0:10:25]} fxg3 {[%clk 0:04:19]} 33. Qxe5+ {[%clk 0:09:51]} f6
{[%clk 0:04:39]} 34. Qe8+ {[%clk 0:09:04]} Kg7 {[%clk 0:04:34]} 35. hxg3
{[%clk 0:08:04]} Qe6 {[%clk 0:03:21]} 36. Qxe6 {[%clk 0:07:14]} dxe6
{[%clk 0:03:28]} 37. Nc7 {[%clk 0:07:16]} Rg4 {[%clk 0:02:48]} 38. Nxb5
{[%clk 0:06:17]} Rb4 {[%clk 0:03:08]} 39. Nd4 {[%clk 0:05:06]} Kf7
{[%clk 0:02:11]} 40. Rc1 {[%clk 0:33:43]} Rxd4 {[%clk 0:31:26]} 41. Rxc5
{[%clk 0:34:08]} Rd2 {[%clk 0:31:51]} 42. Rc7+ {[%clk 0:28:37]} Kg6
{[%clk 0:31:56]} 43. e4 {[%clk 0:26:54]} Rxa2 {[%clk 0:31:53]} 44. Kg2
{[%clk 0:27:17]} 1/2-1/2